fUST/lending_fUST_20250708
["ID","MTS","AMOUNT","RATE_DAILY","PERIOD"]
[370383802,1751988652052,-460.0,0.00020547,2]
[370383803,1751988652063,-460.0,0.00020547,2]
[370383804,1751988652233,-500.0,0.00020547,2]
[370383805,1751988652243,-1921.6,0.00020547,2]
[370383806,1751988652253,-1435.95,0.00020547,2]
[370383807,1751988652262,-500.79233465,0.00020547,2]
[370383808,1751988652272,-460.0,0.00020547,2]
[370383809,1751988652281,-1026.07,0.00020547,2]
[370383810,1751988652291,-460.0,0.00020547,2]
[370383811,1751988652300,-490.93,0.00020547,2]
[370383812,1751988652310,-758.19,0.00020547,2]
[370383813,1751988652320,-460.0,0.00020547,2]
[370383814,1751988652330,-838.86,0.00020547,2]
[370383815,1751988652340,-5127.49,0.00020547,2]
[370383816,1751988652349,-460.0,0.00020547,2]
[370383817,1751988652359,-901.2,0.00020547,2]
[370383818,1751988652368,-862.21,0.00020547,2]
[370383819,1751988652378,-460.0,0.00020547,2]
[370383820,1751988652388,-2753.27,0.00020547,2]
[370383821,1751988652397,-835.38,0.00020547,2]
[370383822,1751988652407,-460.0,0.00020547,2]
[370383823,1751988652416,-658.66,0.00020547,2]
[370383824,1751988652426,-460.0,0.00020547,2]
[370383825,1751988652435,-460.0,0.00020547,2]
[370383826,1751988652446,-3833.71,0.00020547,2]
[370383827,1751988652455,-209.00520413,0.00020547,2]
[370383828,1751988652465,-460.0,0.00020547,2]
[370383829,1751988652475,-460.0,0.00020547,2]
[370383830,1751988652485,-646.83,0.00020547,2]
[370383831,1751988652495,-460.0,0.00020547,2]
[370383832,1751988652505,-724.43,0.00020547,2]
[370383833,1751988652515,-673.37,0.00020547,2]
[370383834,1751988652525,-460.0,0.00020547,2]
[370383835,1751988652537,-460.0,0.00020547,2]
[370383836,1751988652547,-664.63,0.00020547,2]
[370383837,1751988652557,-1708.39,0.00020547,2]
[370383838,1751988652566,-460.0,0.00020547,2]
[370383839,1751988652578,-597.74,0.00020547,2]
[370383840,1751988652587,-844.71,0.00020547,2]
[370383841,1751988652597,-2473.14,0.00020547,2]
[370383842,1751988652607,-646.14,0.00020547,2]
[370383843,1751988652617,-487.61,0.00020547,2]
[370383844,1751988652626,-1506.99,0.00020547,2]
[370383845,1751988652636,-460.0,0.00020547,2]
[370383846,1751988652647,-460.0,0.00020547,2]
[370383847,1751988652656,-460.0,0.00020547,2]
[370383848,1751988652666,-2788.13,0.00020547,2]
[370383849,1751988652676,-460.0,0.00020547,2]
[370383850,1751988652686,-688.11,0.00020547,2]
[370383851,1751988652696,-177.33188791,0.00020547,2]
[370383852,1751988652705,-460.0,0.00020547,2]
[370383853,1751988652715,-460.0,0.00020547,2]
[370383854,1751988652725,-460.0,0.00020547,2]
[370383855,1751988652735,-752.17,0.00020547,2]
[370383856,1751988652745,-707.53,0.00020547,2]
[370383857,1751988652754,-694.91,0.00020547,2]
[370383858,1751988652764,-460.0,0.00020547,2]
[370383859,1751988652774,-2901.31,0.00020547,2]
[370383860,1751988652783,-460.0,0.00020547,2]
[370383861,1751988652792,-605.75,0.00020547,2]
[370383862,1751988652801,-460.0,0.00020547,2]
[370383863,1751988652811,-460.0,0.00020547,2]
[370383864,1751988652820,-1269.5,0.00020547,2]
[370383865,1751988652830,-460.0,0.00020547,2]
[370383866,1751988652839,-5408.87,0.00020547,2]
[370383867,1751988652849,-4052.16,0.00020547,2]
[370383868,1751988652858,-723.51,0.00020547,2]
[370383869,1751988652867,-460.0,0.00020547,2]
[370383870,1751988652877,-460.0,0.00020547,2]
[370383871,1751988652887,-460.0,0.00020547,2]
[370383872,1751988652896,-2441.44,0.00020547,2]
[370383873,1751988652905,-1137.52,0.00020547,2]
[370383874,1751988652914,-681.91,0.00020547,2]
[370383875,1751988652924,-510.15,0.00020547,2]
[370383876,1751988652933,-776.58,0.00020547,2]
[370383877,1751988652943,-1009.01,0.00020547,2]
[370383878,1751988652952,-460.0,0.00020547,2]
[370383879,1751988652962,-677.21,0.00020547,2]
[370383880,1751988652972,-2559.5,0.00020547,2]
[370383881,1751988652981,-1454.34,0.00020547,2]
[370383882,1751988652990,-960.91,0.00020547,2]
[370383883,1751988653000,-510.04,0.00020547,2]
[370383884,1751988653010,-3140.82,0.00020547,2]
[370383885,1751988653019,-500.0,0.00020571,2]
[370383886,1751988653029,-6000.12112762,0.0002059,3]
[370383887,1751988653039,-151.0,0.000206,4]
[370383888,1751988653048,-2000.0,0.000206,6]
[370383889,1751988653058,-151.0,0.000206,2]
[370383890,1751988653068,-967.0,0.00020611,2]
[370383891,1751988653077,-2474.22746086,0.00020613,2]
[370383892,1751988653087,-500.0,0.00020636,2]
[370383893,1751988653096,-297.77138809,0.00020636,2]
[370383894,1751988653105,-500.0,0.00020636,2]
[370383895,1751988653115,-501.13632603,0.00020636,2]
[370383896,1751988653124,-500.0,0.00020636,2]
[370383897,1751988653133,-600.0,0.00020636,2]
[370383898,1751988653143,-500.63262251,0.00020636,2]
[370383899,1751988653152,-500.77879044,0.00020636,2]
[370383900,1751988653161,-500.0,0.00020636,2]
[370383901,1751988653170,-500.0,0.00020636,2]
[370383902,1751988653180,-501.11070705,0.00020636,2]
[370383903,1751988653189,-500.0,0.00020636,2]
[370383904,1751988653199,-587.87715135,0.00020636,2]
[370383905,1751988653209,-500.0,0.00020636,2]
[370383906,1751988653218,-500.0,0.00020636,2]
[370383907,1751988653228,-500.0,0.00020664,2]
[370383908,1751988653238,-150.0,0.00020668,2]
[370383909,1751988653247,-407.0,0.00020721,2]
[370383910,1751988653257,-500.0,0.00020758,2]
[370383911,1751988653266,-1500.0,0.00020766,2]
[370383912,1751988653276,-739.429,0.0002077,2]
[370383913,1751988653285,-178.092,0.0002077,2]
[370383914,1751988653295,-500.0,0.00020814,2]
[370383915,1751988653305,-1522.41606942,0.00020816,2]
[370383916,1751988653314,-151.0,0.00020821,2]
[370383917,1751988653324,-151.0,0.00020821,2]
[370383918,1751988653333,-151.0,0.00020821,2]
[370383919,1751988653343,-452.00815695,0.00020821,2]
[370383920,1751988653352,-460.0,0.00020821,2]
[370383921,1751988653362,-1027.44,0.00020821,2]
[370383922,1751988653371,-460.0,0.00020821,2]
[370383923,1751988653381,-460.0,0.00020821,2]
[370383924,1751988653390,-460.0,0.00020821,2]
[370383925,1751988653399,-460.0,0.00020821,2]
[370383926,1751988653409,-863.55,0.00020821,2]
[370383927,1751988653418,-460.0,0.00020821,2]
[370383928,1751988653428,-460.0,0.00020821,2]
[370383929,1751988653437,-592.45,0.00020821,2]
[370383930,1751988653448,-460.0,0.00020821,2]
[370383931,1751988653457,-512.5,0.00020821,2]
[370383932,1751988653466,-941.19,0.00020821,2]
[370383933,1751988653476,-460.0,0.00020821,2]
[370383934,1751988653485,-460.0,0.00020821,2]
[370383935,1751988653495,-460.0,0.00020821,2]
[370383936,1751988653505,-460.0,0.00020821,2]
[370383937,1751988653514,-460.0,0.00020821,2]
[370383938,1751988653523,-460.0,0.00020821,2]
[370383939,1751988653535,-898.19,0.00020821,2]
[370383940,1751988653544,-468.58,0.00020821,2]
[370383941,1751988653553,-811.62,0.00020821,2]
[370383942,1751988653562,-862.49,0.00020821,2]
[370383943,1751988653572,-460.0,0.00020821,2]
[370383944,1751988653582,-510.43,0.00020821,2]
[370383945,1751988653592,-460.0,0.00020821,2]
[370383946,1751988653601,-1555.07,0.00020821,2]
[370383947,1751988653610,-460.0,0.00020821,2]
[370383948,1751988653620,-460.0,0.00020821,2]
[370383949,1751988653630,-855.52,0.00020821,2]
[370383950,1751988653639,-460.0,0.00020821,2]
[370383951,1751988653648,-545.34,0.00020821,2]
[370383952,1751988653658,-633.51,0.00020821,2]
[370383953,1751988653668,-460.0,0.00020821,2]
[370383954,1751988653677,-1397.65,0.00020821,2]
[370383955,1751988653686,-460.0,0.00020821,2]
[370383956,1751988653697,-1921.6,0.00020821,2]
[370383957,1751988653707,-1435.95,0.00020821,2]
[370383958,1751988653716,-460.0,0.00020821,2]
[370383959,1751988653726,-460.0,0.00020821,2]
[370383960,1751988653736,-1026.07,0.00020821,2]
[370383961,1751988653746,-490.93,0.00020821,2]
[370383962,1751988653755,-758.19,0.00020821,2]
[370383963,1751988653764,-460.0,0.00020821,2]
[370383964,1751988653774,-838.86,0.00020821,2]
[370383965,1751988653783,-5127.49,0.00020821,2]
[370383966,1751988653792,-460.0,0.00020821,2]
[370383967,1751988653802,-901.2,0.00020821,2]
[370383968,1751988653812,-862.21,0.00020821,2]
[370383969,1751988653822,-460.0,0.00020821,2]
[370383970,1751988653832,-2753.27,0.00020821,2]
[370383971,1751988653841,-835.38,0.00020821,2]
[370383972,1751988653851,-460.0,0.00020821,2]
[370383973,1751988653860,-658.66,0.00020821,2]
[370383974,1751988653869,-460.0,0.00020821,2]
[370383975,1751988653878,-3833.71,0.00020821,2]
[370383976,1751988653888,-460.0,0.00020821,2]
[370383977,1751988653897,-460.0,0.00020821,2]
[370383978,1751988653907,-646.83,0.00020821,2]
[370383979,1751988653916,-724.43,0.00020821,2]
[370383980,1751988653926,-673.37,0.00020821,2]
[370383981,1751988653936,-460.0,0.00020821,2]
[370383982,1751988653947,-460.0,0.00020821,2]
[370383983,1751988653956,-664.63,0.00020821,2]
[370383984,1751988653966,-1708.39,0.00020821,2]
[370383985,1751988653976,-460.0,0.00020821,2]
[370383986,1751988653985,-597.74,0.00020821,2]
[370383987,1751988653995,-844.71,0.00020821,2]
[370383988,1751988654005,-2473.14,0.00020821,2]
[370383989,1751988654015,-646.14,0.00020821,2]
[370383990,1751988654025,-487.61,0.00020821,2]
[370383991,1751988654034,-1506.99,0.00020821,2]
[370383992,1751988654044,-460.0,0.00020821,2]
[370383993,1751988654053,-460.0,0.00020821,2]
[370383994,1751988654063,-460.0,0.00020821,2]
[370383995,1751988654072,-2788.13,0.00020821,2]
[370383996,1751988654082,-460.0,0.00020821,2]
[370383997,1751988654092,-688.11,0.00020821,2]
[370383998,1751988654101,-460.0,0.00020821,2]
[370383999,1751988654111,-460.0,0.00020821,2]
[370384000,1751988654120,-460.0,0.00020821,2]
[370384001,1751988654130,-752.17,0.00020821,2]
[370384002,1751988654140,-707.53,0.00020821,2]
[370384003,1751988654149,-694.91,0.00020821,2]
[370384004,1751988654158,-319.52,0.00020821,2]
[370384005,1751988654168,-2901.31,0.00020821,2]
[370384006,1751988654177,-460.0,0.00020821,2]
[370384007,1751988654188,-605.75,0.00020821,2]
[370384008,1751988654197,-460.0,0.00020821,2]
[370384009,1751988654207,-460.0,0.00020821,2]
[370384010,1751988654216,-1269.5,0.00020821,2]
[370384011,1751988654227,-460.0,0.00020821,2]
[370384012,1751988654236,-5408.87,0.00020821,2]
[370384013,1751988654245,-4052.16,0.00020821,2]
[370384014,1751988654255,-723.51,0.00020821,2]
[370384015,1751988654264,-460.0,0.00020821,2]
[370384016,1751988654274,-460.0,0.00020821,2]
[370384017,1751988654283,-235.88028879,0.00020821,2]
[370384018,1751988654293,-2441.44,0.00020821,2]
[370384019,1751988654302,-1137.52,0.00020821,2]
[370384020,1751988654312,-681.91,0.00020821,2]
[370384021,1751988654321,-510.15,0.00020821,2]
[370384022,1751988654331,-776.58,0.00020821,2]
[370384023,1751988654340,-1009.01,0.00020821,2]
[370384024,1751988654349,-460.0,0.00020821,2]
[370384025,1751988654359,-677.21,0.00020821,2]
[370384026,1751988654368,-2559.5,0.00020821,2]
[370384027,1751988654377,-1454.34,0.00020821,2]
[370384028,1751988654386,-960.91,0.00020821,2]
[370384029,1751988654395,-510.04,0.00020821,2]
[370384030,1751988654405,-3140.82,0.00020821,2]
[370384031,1751988654414,-6000.12112762,0.00020831,4]
[370384032,1751988654423,-500.0,0.00020851,2]
[370384033,1751988654433,-215.0738,0.00020882,2]
[370384034,1751988654444,-151.0,0.000209,4]
[370384035,1751988654453,-500.0,0.00020945,2]
[370384036,1751988654463,-8670.98854847,0.00020995,2]
[370384037,1751988654473,-151.0,0.00021,2]
[370384038,1751988654483,-151.0,0.00021,2]
[370384039,1751988654492,-500.0,0.00021038,2]
[370384040,1751988654542,-6000.12112762,0.00021072,4]
[370384041,1751988654551,-460.0,0.00021095,2]
[370384042,1751988654561,-1027.44,0.00021095,2]
[370384043,1751988654571,-460.0,0.00021095,2]
[370384044,1751988654581,-460.0,0.00021095,2]
[370384045,1751988654590,-460.0,0.00021095,2]
[370384046,1751988654599,-460.0,0.00021095,2]
[370384047,1751988654611,-863.55,0.00021095,2]
[370384048,1751988654621,-460.0,0.00021095,2]
[370384049,1751988654630,-257.61468776,0.00021095,2]
[370384050,1751988654639,-592.45,0.00021095,2]
[370384051,1751988654648,-460.0,0.00021095,2]
[370384052,1751988654658,-512.5,0.00021095,2]
[370384053,1751988654667,-941.19,0.00021095,2]
[370384054,1751988654676,-460.0,0.00021095,2]
[370384055,1751988654686,-460.0,0.00021095,2]
[370384056,1751988654695,-460.0,0.00021095,2]
[370384057,1751988654705,-460.0,0.00021095,2]
[370384058,1751988654714,-460.0,0.00021095,2]
[370384059,1751988654723,-460.0,0.00021095,2]
[370384060,1751988654733,-898.19,0.00021095,2]
[370384061,1751988654742,-468.58,0.00021095,2]
[370384062,1751988654752,-811.62,0.00021095,2]
[370384063,1751988654761,-862.49,0.00021095,2]
[370384064,1751988654771,-460.0,0.00021095,2]
[370384065,1751988654780,-510.43,0.00021095,2]
[370384066,1751988654789,-460.0,0.00021095,2]
[370384067,1751988654798,-1555.07,0.00021095,2]
[370384068,1751988654808,-460.0,0.00021095,2]
[370384069,1751988654817,-460.0,0.00021095,2]
[370384070,1751988654827,-855.52,0.00021095,2]
[370384071,1751988654836,-460.0,0.00021095,2]
[370384072,1751988654845,-545.34,0.00021095,2]
[370384073,1751988654854,-633.51,0.00021095,2]
[370384074,1751988654864,-220.620125,0.00021095,2]
[370384075,1751988654874,-1397.65,0.00021095,2]
[370384076,1751988654884,-460.0,0.00021095,2]
[370384077,1751988654894,-1921.6,0.00021095,2]
[370384078,1751988654904,-1435.95,0.00021095,2]
[370384079,1751988654913,-460.0,0.00021095,2]
[370384080,1751988654923,-460.0,0.00021095,2]
[370384081,1751988654933,-1026.07,0.00021095,2]
[370384082,1751988654942,-490.93,0.00021095,2]
[370384083,1751988654952,-758.19,0.00021095,2]
[370384084,1751988654962,-838.86,0.00021095,2]
[370384085,1751988654971,-5127.49,0.00021095,2]
[370384086,1751988654980,-460.0,0.00021095,2]
[370384087,1751988654989,-901.2,0.00021095,2]
[370384088,1751988654998,-862.21,0.00021095,2]
[370384089,1751988655008,-460.0,0.00021095,2]
[370384090,1751988655017,-2753.27,0.00021095,2]
[370384091,1751988655027,-835.38,0.00021095,2]
[370384092,1751988655037,-460.0,0.00021095,2]
[370384093,1751988655046,-658.66,0.00021095,2]
[370384094,1751988655055,-460.0,0.00021095,2]
[370384095,1751988655065,-3833.71,0.00021095,2]
[370384096,1751988655075,-460.0,0.00021095,2]
[370384097,1751988655084,-460.0,0.00021095,2]
[370384098,1751988655094,-646.83,0.00021095,2]
[370384099,1751988655103,-724.43,0.00021095,2]
[370384100,1751988655112,-673.37,0.00021095,2]
[370384101,1751988655122,-460.0,0.00021095,2]
[370384102,1751988655131,-460.0,0.00021095,2]
[370384103,1751988655141,-664.63,0.00021095,2]
[370384104,1751988655150,-1708.39,0.00021095,2]
[370384105,1751988655160,-460.0,0.00021095,2]
[370384106,1751988655169,-597.74,0.00021095,2]
[370384107,1751988655178,-844.71,0.00021095,2]
[370384108,1751988655188,-2473.14,0.00021095,2]
[370384109,1751988655197,-646.14,0.00021095,2]
[370384110,1751988655207,-487.61,0.00021095,2]
[370384111,1751988655216,-1506.99,0.00021095,2]
[370384112,1751988655226,-460.0,0.00021095,2]
[370384113,1751988655235,-460.0,0.00021095,2]
[370384114,1751988655244,-460.0,0.00021095,2]
[370384115,1751988655254,-460.0,0.00021095,2]
[370384116,1751988655263,-2788.13,0.00021095,2]
[370384117,1751988655273,-688.11,0.00021095,2]
[370384118,1751988655283,-460.0,0.00021095,2]
[370384119,1751988655293,-460.0,0.00021095,2]
[370384120,1751988655302,-460.0,0.00021095,2]
[370384121,1751988655312,-752.17,0.00021095,2]
[370384122,1751988655321,-707.53,0.00021095,2]
[370384123,1751988655331,-694.91,0.00021095,2]
[370384124,1751988655340,-2901.31,0.00021095,2]
[370384125,1751988655350,-460.0,0.00021095,2]
[370384126,1751988655360,-605.75,0.00021095,2]
[370384127,1751988655369,-460.0,0.00021095,2]
[370384128,1751988655380,-460.0,0.00021095,2]
[370384129,1751988655389,-1269.5,0.00021095,2]
[370384130,1751988655399,-460.0,0.00021095,2]
[370384131,1751988655408,-5408.87,0.00021095,2]
[370384132,1751988655418,-723.51,0.00021095,2]
[370384133,1751988655427,-4052.16,0.00021095,2]
[370384134,1751988655436,-460.0,0.00021095,2]
[370384135,1751988655445,-460.0,0.00021095,2]
[370384136,1751988655457,-2441.44,0.00021095,2]
[370384137,1751988655465,-1137.52,0.00021095,2]
[370384138,1751988655475,-681.91,0.00021095,2]
[370384139,1751988655484,-510.15,0.00021095,2]
[370384140,1751988655494,-776.58,0.00021095,2]
[370384141,1751988655503,-1009.01,0.00021095,2]
[370384142,1751988655513,-460.0,0.00021095,2]
[370384143,1751988655522,-677.21,0.00021095,2]
[370384144,1751988655534,-2559.5,0.00021095,2]
[370384145,1751988655543,-1454.34,0.00021095,2]
[370384146,1751988655552,-960.91,0.00021095,2]
[370384147,1751988655562,-510.04,0.00021095,2]
[370384148,1751988655571,-3140.82,0.00021095,2]
[370384149,1751988655580,-500.0,0.00021132,2]
[370384150,1751988655590,-1000.0,0.00021184,2]
[370384151,1751988655599,-1200.0,0.00021184,2]
[370384152,1751988655608,-1000.0,0.00021184,2]
[370384153,1751988655617,-700.74480676,0.00021184,2]
[370384154,1751988655794,-234.54327964,0.00021184,2]
[370384155,1751988655804,-1000.0,0.00021184,2]
[370384156,1751988655814,-500.0,0.00021225,2]
[370384157,1751988655824,-2200.0,0.00021232,2]
[370384158,1751988655834,-1521.05059314,0.00021314,2]
[370384159,1751988655844,-6000.12112762,0.00021314,5]
[370384160,1751988655854,-500.0,0.00021319,2]
[370384161,1751988655863,-500.0,0.00021332,2]
[370384162,1751988655873,-151.0,0.00021369,2]
[370384163,1751988655882,-151.0,0.00021369,2]
[370384164,1751988655892,-151.0,0.00021369,2]
[370384165,1751988655902,-460.0,0.00021369,2]
[370384166,1751988655911,-1027.44,0.00021369,2]
[370384167,1751988655921,-460.0,0.00021369,2]
[370384168,1751988655931,-460.0,0.00021369,2]
[370384169,1751988655941,-460.0,0.00021369,2]
[370384170,1751988655952,-460.0,0.00021369,2]
[370384171,1751988655962,-863.55,0.00021369,2]
[370384172,1751988655971,-460.0,0.00021369,2]
[370384173,1751988655982,-592.45,0.00021369,2]
[370384174,1751988655992,-460.0,0.00021369,2]
[370384175,1751988656002,-512.5,0.00021369,2]
[370384176,1751988656012,-941.19,0.00021369,2]
[370384177,1751988656021,-460.0,0.00021369,2]
[370384178,1751988656031,-388.46359057,0.00021369,2]
[370384179,1751988656041,-513.10793708,0.00021369,2]
[370384180,1751988656051,-168.75269774,0.00021369,2]
[370384181,1751988656061,-460.0,0.00021369,2]
[370384182,1751988656070,-460.0,0.00021369,2]
[370384183,1751988656080,-898.19,0.00021369,2]
[370384184,1751988656090,-468.58,0.00021369,2]
[370384185,1751988656099,-811.62,0.00021369,2]
[370384186,1751988656109,-862.49,0.00021369,2]
[370384187,1751988656118,-460.0,0.00021369,2]
[370384188,1751988656128,-510.43,0.00021369,2]
[370384189,1751988656138,-460.0,0.00021369,2]
[370384190,1751988656148,-1555.07,0.00021369,2]
[370384191,1751988656158,-460.0,0.00021369,2]
[370384192,1751988656168,-460.0,0.00021369,2]
[370384193,1751988656178,-855.52,0.00021369,2]
[370384194,1751988656188,-460.0,0.00021369,2]
[370384195,1751988656199,-545.34,0.00021369,2]
[370384196,1751988656209,-633.51,0.00021369,2]
[370384197,1751988656219,-1397.65,0.00021369,2]
[370384198,1751988656229,-554.63286554,0.00021369,2]
[370384199,1751988656239,-1921.6,0.00021369,2]
[370384200,1751988656249,-1435.95,0.00021369,2]
[370384201,1751988656259,-460.0,0.00021369,2]
[370384202,1751988656268,-460.0,0.00021369,2]
[370384203,1751988656278,-1026.07,0.00021369,2]
[370384204,1751988656287,-490.93,0.00021369,2]
[370384205,1751988656297,-758.19,0.00021369,2]
[370384206,1751988656307,-838.86,0.00021369,2]
[370384207,1751988656317,-5127.49,0.00021369,2]
[370384208,1751988656327,-460.0,0.00021369,2]
[370384209,1751988656336,-901.2,0.00021369,2]
[370384210,1751988656346,-862.21,0.00021369,2]
[370384211,1751988656356,-460.0,0.00021369,2]
[370384212,1751988656365,-2753.27,0.00021369,2]
[370384213,1751988656375,-835.38,0.00021369,2]
[370384214,1751988656384,-460.0,0.00021369,2]
[370384215,1751988656395,-658.66,0.00021369,2]
[370384216,1751988656405,-460.0,0.00021369,2]
[370384217,1751988656415,-3833.71,0.00021369,2]
[370384218,1751988656425,-460.0,0.00021369,2]
[370384219,1751988656435,-460.0,0.00021369,2]
[370384220,1751988656445,-151.0,0.00021369,2]
[370384221,1751988656456,-646.83,0.00021369,2]
[370384222,1751988656466,-724.43,0.00021369,2]
[370384223,1751988656475,-673.37,0.00021369,2]
[370384224,1751988656485,-460.0,0.00021369,2]
[370384225,1751988656495,-460.0,0.00021369,2]
[370384226,1751988656504,-1708.39,0.00021369,2]
[370384227,1751988656514,-543.93316443,0.00021369,2]
[370384228,1751988656523,-597.74,0.00021369,2]
[370384229,1751988656537,-844.71,0.00021369,2]
[370384230,1751988656547,-664.63,0.00021369,2]
[370384231,1751988656557,-2473.14,0.00021369,2]
[370384232,1751988656567,-646.14,0.00021369,2]
[370384233,1751988656576,-487.61,0.00021369,2]
[370384234,1751988656586,-1506.99,0.00021369,2]
[370384235,1751988656596,-550.76,0.00021369,2]
[370384236,1751988656608,-460.0,0.00021369,2]
[370384237,1751988656618,-460.0,0.00021369,2]
[370384238,1751988656627,-460.0,0.00021369,2]
[370384239,1751988656637,-2788.13,0.00021369,2]
[370384240,1751988656647,-688.11,0.00021369,2]
[370384241,1751988656656,-250.09109468,0.00021369,2]
[370384242,1751988656666,-460.0,0.00021369,2]
[370384243,1751988656675,-520.33762507,0.00021369,2]
[370384244,1751988656686,-752.17,0.00021369,2]
[370384245,1751988656697,-707.53,0.00021369,2]
[370384246,1751988656707,-694.91,0.00021369,2]
[370384247,1751988656716,-151.0,0.00021369,2]
[370384248,1751988656726,-151.0,0.00021369,2]
[370384249,1751988656736,-2901.31,0.00021369,2]
[370384250,1751988656746,-460.0,0.00021369,2]
[370384251,1751988656756,-605.75,0.00021369,2]
[370384252,1751988656766,-460.0,0.00021369,2]
[370384253,1751988656775,-460.0,0.00021369,2]
[370384254,1751988656785,-1269.5,0.00021369,2]
[370384255,1751988656795,-460.0,0.00021369,2]
[370384256,1751988656805,-5408.87,0.00021369,2]
[370384257,1751988656815,-723.51,0.00021369,2]
[370384258,1751988656825,-4052.16,0.00021369,2]
[370384259,1751988656835,-460.0,0.00021369,2]
[370384260,1751988656845,-460.0,0.00021369,2]
[370384261,1751988656855,-2441.44,0.00021369,2]
[370384262,1751988656865,-1137.52,0.00021369,2]
[370384263,1751988656875,-681.91,0.00021369,2]
[370384264,1751988656885,-510.15,0.00021369,2]
[370384265,1751988656894,-776.58,0.00021369,2]
[370384266,1751988656904,-1009.01,0.00021369,2]
[370384267,1751988656914,-460.0,0.00021369,2]
[370384268,1751988656924,-151.0,0.00021369,2]
[370384269,1751988656933,-151.0,0.00021369,2]
[370384270,1751988656944,-677.21,0.00021369,2]
[370384271,1751988656955,-2559.5,0.00021369,2]
[370384272,1751988656965,-1454.34,0.00021369,2]
[370384273,1751988656976,-960.91,0.00021369,2]
[370384274,1751988656986,-510.04,0.00021369,2]
[370384275,1751988656995,-3140.82,0.00021369,2]
[370384276,1751988657005,-8670.98854842,0.00021466,2]
[370384277,1751988657015,-748.96990294,0.00021471,2]
[370384278,1751988657025,-6000.12112762,0.00021555,5]
[370384279,1751988657034,-2000.0,0.000216,7]
[370384280,1751988657044,-154.041585,0.000216,2]
[370384281,1751988657054,-150.0,0.00021607,2]
[370384282,1751988657065,-500.0,0.00021635,2]
[370384283,1751988657074,-151.0,0.00021643,2]
[370384284,1751988657084,-200.073703,0.00021643,2]
[370384285,1751988657094,-460.0,0.00021643,2]
[370384286,1751988657104,-1027.44,0.00021643,2]
[370384287,1751988657114,-460.0,0.00021643,2]
[370384288,1751988657124,-460.0,0.00021643,2]
[370384289,1751988657134,-460.0,0.00021643,2]
[370384290,1751988657144,-460.0,0.00021643,2]
[370384291,1751988657153,-863.55,0.00021643,2]
[370384292,1751988657163,-460.0,0.00021643,2]
[370384293,1751988657173,-592.45,0.00021643,2]
[370384294,1751988657183,-460.0,0.00021643,2]
[370384295,1751988657193,-512.5,0.00021643,2]
[370384296,1751988657204,-941.19,0.00021643,2]
[370384297,1751988657214,-460.0,0.00021643,2]
[370384298,1751988657224,-460.0,0.00021643,2]
[370384299,1751988657237,-460.0,0.00021643,2]
[370384300,1751988657247,-898.19,0.00021643,2]
[370384301,1751988657257,-468.58,0.00021643,2]